[Event "Titled Tuesday Blitz January 10 Late 2023"]
[White "Skurikhin, Dmitrij"]
[Black "Martinez, Marcel"]
[WhiteFideId "4161297"]
[BlackFideId "2016249"]
[WhiteElo "2297"]
[BlackElo "2402"]
[Result "0-1"]
[Round "10"]
[TimeControl "180+2"]
[Date "2023.01.10"]
[WhiteClock "0:00:08"]
[BlackClock "0:00:55"]

1. d4 {[%clk 0:00:00]}  d5 {[%clk 0:00:00]} 2. c4 {[%clk 0:02:59]}  c6 {[%clk 0:02:59]} 3. Nf3 {[%clk 0:02:58]}  Nf6 {[%clk 0:03:00]} 4. Nc3 {[%clk 0:02:58]}  dxc4 {[%clk 0:03:00]} 5. a4 {[%clk 0:02:58]}  Bf5 {[%clk 0:03:00]} 6. e3 {[%clk 0:02:57]}  e6 {[%clk 0:03:00]} 7. Bxc4 {[%clk 0:02:57]}  Bb4 {[%clk 0:02:59]} 8. O-O {[%clk 0:02:57]}  O-O {[%clk 0:02:59]} 9. Qe2 {[%clk 0:02:57]}  Bg6 {[%clk 0:02:59]} 10. Ne5 {[%clk 0:02:50]}  Nbd7 {[%clk 0:02:59]} 11. Nxg6 {[%clk 0:02:48]}  hxg6 {[%clk 0:02:59]} 12. Qc2 {[%clk 0:02:48]}  Qe7 {[%clk 0:02:58]} 13. Bd2 {[%clk 0:02:46]}  a5 {[%clk 0:02:53]} 14. Bb3 {[%clk 0:02:44]}  Rac8 {[%clk 0:02:53]} 15. Na2 {[%clk 0:02:43]}  Bxd2 {[%clk 0:02:49]} 16. Qxd2 {[%clk 0:02:35]}  b6 {[%clk 0:02:39]} 17. Nc3 {[%clk 0:02:34]}  Qb4 {[%clk 0:02:39]} 18. Ba2 {[%clk 0:02:13]}  c5 {[%clk 0:02:27]} 19. Rfd1 {[%clk 0:02:12]}  Rfd8 {[%clk 0:02:22]} 20. Nb5 {[%clk 0:01:59]}  Qxd2 {[%clk 0:02:21]} 21. Rxd2 {[%clk 0:01:53]}  Ne4 {[%clk 0:02:03]} 22. Rc2 {[%clk 0:01:52]}  cxd4 {[%clk 0:02:00]} 23. Nxd4 {[%clk 0:01:48]}  Rxc2 {[%clk 0:01:58]} 24. Nxc2 {[%clk 0:01:38]}  Ndc5 {[%clk 0:01:50]} 25. f3 {[%clk 0:01:37]}  Rd2 {[%clk 0:01:48]} 26. Na3 {[%clk 0:01:29]}  Nd6 {[%clk 0:01:44]} 27. e4 {[%clk 0:00:56]}  Nxa4 {[%clk 0:01:36]} 28. e5 {[%clk 0:00:30]}  Nf5 {[%clk 0:01:30]} 29. Nc4 {[%clk 0:00:25]}  Rd4 {[%clk 0:01:26]} 30. b3 {[%clk 0:00:23]}  Nc3 {[%clk 0:01:07]} 31. Kf1 {[%clk 0:00:20]}  b5 {[%clk 0:01:01]} 32. Nxa5 {[%clk 0:00:08]}  Rd2 {[%clk 0:00:55]} 0-1


[Site "https://www.chess.com"]

[Event "Titled Tuesday Blitz January 10 Late 2023"]
[White "Melikyan, Gnel"]
[Black "Bon, Michael"]
[WhiteFideId "54109990"]
[BlackFideId "620696"]
[WhiteElo "2238"]
[BlackElo "2394"]
[Result "1-0"]
[Round "10"]
[TimeControl "180+2"]
[Date "2023.01.10"]
[WhiteClock "0:00:07"]
[BlackClock "0:00:01"]

1. Na3 {[%clk 0:00:00]}  g6 {[%clk 0:00:00]} 2. Nf3 {[%clk 0:02:56]}  Bg7 {[%clk 0:02:58]} 3. d4 {[%clk 0:02:53]}  d6 {[%clk 0:02:58]} 4. e3 {[%clk 0:02:53]}  Nf6 {[%clk 0:02:54]} 5. Be2 {[%clk 0:02:53]}  O-O {[%clk 0:02:50]} 6. O-O {[%clk 0:02:51]}  c5 {[%clk 0:02:50]} 7. b3 {[%clk 0:02:52]}  cxd4 {[%clk 0:02:47]} 8. exd4 {[%clk 0:02:50]}  d5 {[%clk 0:02:33]} 9. c4 {[%clk 0:02:48]}  Nc6 {[%clk 0:02:28]} 10. Bb2 {[%clk 0:02:46]}  Bf5 {[%clk 0:02:27]} 11. Ne5 {[%clk 0:02:41]}  Qa5 {[%clk 0:02:24]} 12. Bf3 {[%clk 0:02:38]}  Rfd8 {[%clk 0:02:21]} 13. Qe1 {[%clk 0:02:31]}  Qb6 {[%clk 0:02:12]} 14. c5 {[%clk 0:02:17]}  Qc7 {[%clk 0:01:31]} 15. Nb5 {[%clk 0:01:58]}  Qc8 {[%clk 0:01:27]} 16. a4 {[%clk 0:01:46]}  Nxe5 {[%clk 0:01:26]} 17. dxe5 {[%clk 0:01:27]}  Ne4 {[%clk 0:01:21]} 18. b4 {[%clk 0:01:23]}  a5 {[%clk 0:01:21]} 19. Nd4 {[%clk 0:01:22]}  axb4 {[%clk 0:01:18]} 20. Nxf5 {[%clk 0:01:15]}  gxf5 {[%clk 0:01:14]} 21. Bd4 {[%clk 0:01:14]}  Nxc5 {[%clk 0:01:15]} 22. Qxb4 {[%clk 0:00:59]}  Ne6 {[%clk 0:00:51]} 23. Bb6 {[%clk 0:00:52]}  Rd7 {[%clk 0:00:40]} 24. Rac1 {[%clk 0:00:48]}  Qb8 {[%clk 0:00:32]} 25. Rfe1 {[%clk 0:00:42]}  Bxe5 {[%clk 0:00:32]} 26. g3 {[%clk 0:00:37]}  Bf6 {[%clk 0:00:31]} 27. Qb1 {[%clk 0:00:37]}  Qd6 {[%clk 0:00:27]} 28. a5 {[%clk 0:00:21]}  Ng7 {[%clk 0:00:20]} 29. Qb5 {[%clk 0:00:21]}  e6 {[%clk 0:00:17]} 30. Bc5 {[%clk 0:00:16]}  Qc6 {[%clk 0:00:13]} 31. Qxc6 {[%clk 0:00:13]}  bxc6 {[%clk 0:00:11]} 32. Bb6 {[%clk 0:00:12]}  Bd8 {[%clk 0:00:11]} 33. Rxc6 {[%clk 0:00:13]}  Bxb6 {[%clk 0:00:07]} 34. axb6 {[%clk 0:00:12]}  Rb8 {[%clk 0:00:07]} 35. Rb1 {[%clk 0:00:13]}  Rdb7 {[%clk 0:00:07]} 36. Be2 {[%clk 0:00:12]}  Ne8 {[%clk 0:00:07]} 37. Ba6 {[%clk 0:00:12]}  Rd7 {[%clk 0:00:03]} 38. Rc8 {[%clk 0:00:12]}  Rd8 {[%clk 0:00:03]} 39. Rxd8 {[%clk 0:00:11]}  Rxd8 {[%clk 0:00:02]} 40. Rc1 {[%clk 0:00:10]}  Nd6 {[%clk 0:00:02]} 41. Rc6 {[%clk 0:00:08]}  Kf8 {[%clk 0:00:01]} 42. b7 {[%clk 0:00:07]} 1-0


[Site "https://www.chess.com"]

[Event "Titled Tuesday Blitz January 10 Late 2023"]
[White "Janaszak, Dawid"]
[Black "Becerra, Juan David"]
[WhiteFideId "1119206"]
[BlackFideId "4404998"]
[WhiteElo "2316"]
[BlackElo "2382"]
[Result "1-0"]
[Round "10"]
[TimeControl "180+2"]
[Date "2023.01.10"]
[WhiteClock "0:00:07"]
[BlackClock "0:00:08"]

1. e4 {[%clk 0:00:00]}  e5 {[%clk 0:00:00]} 2. Nf3 {[%clk 0:03:00]}  Nc6 {[%clk 0:02:59]} 3. d4 {[%clk 0:02:59]}  exd4 {[%clk 0:02:59]} 4. Nxd4 {[%clk 0:03:00]}  Nf6 {[%clk 0:02:59]} 5. Nxc6 {[%clk 0:03:01]}  bxc6 {[%clk 0:02:58]} 6. e5 {[%clk 0:03:00]}  Nd5 {[%clk 0:02:56]} 7. c4 {[%clk 0:03:01]}  Nb6 {[%clk 0:02:55]} 8. Bd3 {[%clk 0:02:59]}  d6 {[%clk 0:02:55]} 9. exd6 {[%clk 0:02:59]}  Bxd6 {[%clk 0:02:54]} 10. O-O {[%clk 0:02:47]}  O-O {[%clk 0:02:41]} 11. Nc3 {[%clk 0:02:46]}  Be6 {[%clk 0:02:40]} 12. c5 {[%clk 0:02:35]}  Bxc5 {[%clk 0:02:25]} 13. Bxh7+ {[%clk 0:02:24]}  Kxh7 {[%clk 0:02:21]} 14. Qh5+ {[%clk 0:02:22]}  Kg8 {[%clk 0:02:21]} 15. Qxc5 {[%clk 0:02:21]}  Qd6 {[%clk 0:02:15]} 16. Qh5 {[%clk 0:02:22]}  Qd3 {[%clk 0:02:12]} 17. Bf4 {[%clk 0:02:19]}  Nd5 {[%clk 0:01:35]} 18. Nxd5 {[%clk 0:02:13]}  Qxd5 {[%clk 0:01:26]} 19. Qxd5 {[%clk 0:02:07]}  Bxd5 {[%clk 0:01:26]} 20. Bxc7 {[%clk 0:02:05]}  Rfe8 {[%clk 0:01:24]} 21. Rfe1 {[%clk 0:02:05]}  Rxe1+ {[%clk 0:01:22]} 22. Rxe1 {[%clk 0:02:03]}  Bxa2 {[%clk 0:01:21]} 23. b4 {[%clk 0:02:03]}  Bd5 {[%clk 0:01:22]} 24. f3 {[%clk 0:02:01]}  Kh7 {[%clk 0:01:20]} 25. Kf2 {[%clk 0:01:58]}  Kg6 {[%clk 0:01:18]} 26. h4 {[%clk 0:01:57]}  Rc8 {[%clk 0:01:18]} 27. Re7 {[%clk 0:01:57]}  a6 {[%clk 0:01:14]} 28. g4 {[%clk 0:01:53]}  Kh7 {[%clk 0:01:06]} 29. h5 {[%clk 0:01:50]}  Kg8 {[%clk 0:00:59]} 30. g5 {[%clk 0:01:46]}  Kh7 {[%clk 0:00:57]} 31. Be5 {[%clk 0:01:44]}  c5 {[%clk 0:00:56]} 32. bxc5 {[%clk 0:01:40]}  Rxc5 {[%clk 0:00:46]} 33. g6+ {[%clk 0:01:15]}  fxg6 {[%clk 0:00:40]} 34. Rxg7+ {[%clk 0:01:14]}  Kh6 {[%clk 0:00:41]} 35. hxg6 {[%clk 0:01:12]}  Bxf3 {[%clk 0:00:41]} 36. Re7 {[%clk 0:00:38]}  Bd5 {[%clk 0:00:37]} 37. g7 {[%clk 0:00:30]}  Bc4 {[%clk 0:00:32]} 38. Bd4 {[%clk 0:00:31]}  Rd5 {[%clk 0:00:23]} 39. Ke3 {[%clk 0:00:26]}  Rd8 {[%clk 0:00:17]} 40. Rc7 {[%clk 0:00:20]}  Ba2 {[%clk 0:00:17]} 41. Rc6+ {[%clk 0:00:19]}  Kh7 {[%clk 0:00:15]} 42. Rxa6 {[%clk 0:00:17]}  Bc4 {[%clk 0:00:14]} 43. Ra1 {[%clk 0:00:18]}  Re8+ {[%clk 0:00:14]} 44. Kd2 {[%clk 0:00:17]}  Bd5 {[%clk 0:00:12]} 45. Ra5 {[%clk 0:00:16]}  Rd8 {[%clk 0:00:10]} 46. Ke3 {[%clk 0:00:15]}  Re8+ {[%clk 0:00:10]} 47. Kf2 {[%clk 0:00:14]}  Rd8 {[%clk 0:00:09]} 48. Ra3 {[%clk 0:00:14]}  Bf7 {[%clk 0:00:10]} 49. Bf6 {[%clk 0:00:14]}  Rd6 {[%clk 0:00:08]} 50. Rh3+ {[%clk 0:00:14]}  Kg6 {[%clk 0:00:07]} 51. Be5 {[%clk 0:00:12]}  Rd2+ {[%clk 0:00:07]} 52. Ke3 {[%clk 0:00:13]}  Ra2 {[%clk 0:00:07]} 53. Rg3+ {[%clk 0:00:12]}  Kf5 {[%clk 0:00:08]} 54. Bc3 {[%clk 0:00:12]}  Ra3 {[%clk 0:00:08]} 55. Rf3+ {[%clk 0:00:11]}  Ke6 {[%clk 0:00:08]} 56. Kd4 {[%clk 0:00:11]}  Ra4+ {[%clk 0:00:08]} 57. Kc5 {[%clk 0:00:08]}  Ke7 {[%clk 0:00:08]} 58. Re3+ {[%clk 0:00:08]}  Kd7 {[%clk 0:00:08]} 59. Bf6 {[%clk 0:00:07]}  Rc4+ {[%clk 0:00:08]} 60. Kb5 {[%clk 0:00:07]}  Rf4 {[%clk 0:00:07]} 61. Re7+ {[%clk 0:00:07]}  Kd6 {[%clk 0:00:08]} 62. Rxf7 {[%clk 0:00:07]} 1-0


[Site "https://www.chess.com"]

[Event "Titled Tuesday Blitz January 10 Late 2023"]
[White "Dedona, Mark"]
[Black "Bayo Milagro, Alvaro"]
[WhiteFideId "30920256"]
[BlackFideId "22275240"]
[WhiteElo "1662"]
[BlackElo "2287"]
[Result "0-1"]
[Round "10"]
[TimeControl "180+2"]
[Date "2023.01.10"]
[WhiteClock "0:00:42"]
[BlackClock "0:00:25"]

1. e4 {[%clk 0:00:00]}  e5 {[%clk 0:00:00]} 2. Nc3 {[%clk 0:02:48]}  Nf6 {[%clk 0:02:59]} 3. f4 {[%clk 0:02:48]}  d5 {[%clk 0:02:59]} 4. fxe5 {[%clk 0:02:48]}  Nxe4 {[%clk 0:02:59]} 5. Qf3 {[%clk 0:02:49]}  f5 {[%clk 0:02:58]} 6. d3 {[%clk 0:02:49]}  Nxc3 {[%clk 0:02:57]} 7. bxc3 {[%clk 0:02:49]}  d4 {[%clk 0:02:57]} 8. Bd2 {[%clk 0:02:50]}  Nc6 {[%clk 0:02:58]} 9. Qg3 {[%clk 0:02:50]}  Be6 {[%clk 0:02:57]} 10. Nf3 {[%clk 0:02:49]}  g6 {[%clk 0:02:55]} 11. Be2 {[%clk 0:02:49]}  Bc5 {[%clk 0:02:55]} 12. cxd4 {[%clk 0:02:46]}  Nxd4 {[%clk 0:02:48]} 13. Nxd4 {[%clk 0:02:37]}  Qxd4 {[%clk 0:02:46]} 14. c3 {[%clk 0:02:37]}  Qd5 {[%clk 0:02:43]} 15. d4 {[%clk 0:02:33]}  Bb6 {[%clk 0:02:21]} 16. Bf3 {[%clk 0:02:27]}  Qc4 {[%clk 0:02:21]} 17. Be2 {[%clk 0:02:13]}  Qa4 {[%clk 0:02:21]} 18. O-O {[%clk 0:02:11]}  O-O {[%clk 0:02:18]} 19. Bd1 {[%clk 0:02:08]}  Qd7 {[%clk 0:02:18]} 20. Bb3 {[%clk 0:02:07]}  Rad8 {[%clk 0:02:15]} 21. Bg5 {[%clk 0:02:07]}  Rde8 {[%clk 0:02:06]} 22. Rad1 {[%clk 0:02:00]}  Bxb3 {[%clk 0:02:04]} 23. axb3 {[%clk 0:01:57]}  Qd5 {[%clk 0:01:58]} 24. b4 {[%clk 0:01:58]}  Rxe5 {[%clk 0:01:55]} 25. Kh1 {[%clk 0:01:41]}  Ree8 {[%clk 0:01:43]} 26. c4 {[%clk 0:01:29]}  Qxc4 {[%clk 0:01:40]} 27. d5 {[%clk 0:01:23]}  Qg4 {[%clk 0:01:37]} 28. Qxg4 {[%clk 0:01:17]}  fxg4 {[%clk 0:01:32]} 29. Bf4 {[%clk 0:01:11]}  h5 {[%clk 0:01:33]} 30. g3 {[%clk 0:01:11]}  Re4 {[%clk 0:01:20]} 31. d6 {[%clk 0:01:10]}  cxd6 {[%clk 0:01:12]} 32. Rxd6 {[%clk 0:00:59]}  Bc7 {[%clk 0:01:03]} 33. Rxg6+ {[%clk 0:01:00]}  Kh7 {[%clk 0:00:31]} 34. Rg5 {[%clk 0:00:53]}  Bxf4 {[%clk 0:00:32]} 35. Rxf4 {[%clk 0:00:49]}  Rfxf4 {[%clk 0:00:30]} 36. gxf4 {[%clk 0:00:43]}  Rxf4 {[%clk 0:00:29]} 37. Rxh5+ {[%clk 0:00:43]}  Kg6 {[%clk 0:00:25]} 38. Rb5 {[%clk 0:00:44]}  b6 {[%clk 0:00:25]} 39. Kg2 {[%clk 0:00:42]}  Rf5 {[%clk 0:00:25]} 0-1


[Site "https://www.chess.com"]

[Event "Titled Tuesday Blitz January 10 Late 2023"]
[White "Kozin, Yuri"]
[Black "rikchessmx"]
[WhiteFideId "4129920"]
[WhiteElo "2251"]
[BlackElo "2330"]
[Result "1-0"]
[Round "10"]
[TimeControl "180+2"]
[Date "2023.01.10"]
[WhiteClock "0:02:37"]
[BlackClock "0:02:39"]

1. e4 {[%clk 0:00:00]}  e5 {[%clk 0:00:00]} 2. Nf3 {[%clk 0:03:00]}  Nc6 {[%clk 0:02:58]} 3. Bb5 {[%clk 0:03:00]}  a6 {[%clk 0:02:59]} 4. Ba4 {[%clk 0:03:01]}  Nf6 {[%clk 0:02:59]} 5. O-O {[%clk 0:03:01]}  Be7 {[%clk 0:02:58]} 6. Re1 {[%clk 0:03:01]}  b5 {[%clk 0:02:59]} 7. Bb3 {[%clk 0:03:02]}  O-O {[%clk 0:02:59]} 8. a4 {[%clk 0:03:03]}  b4 {[%clk 0:02:59]} 9. d3 {[%clk 0:03:03]}  Rb8 {[%clk 0:02:58]} 10. Bg5 {[%clk 0:03:03]}  d6 {[%clk 0:02:58]} 11. h3 {[%clk 0:03:02]}  Na5 {[%clk 0:02:58]} 12. Ba2 {[%clk 0:03:00]}  c5 {[%clk 0:02:57]} 13. Bxf6 {[%clk 0:02:55]}  Bxf6 {[%clk 0:02:58]} 14. Nbd2 {[%clk 0:02:51]}  Be6 {[%clk 0:02:57]} 15. Nc4 {[%clk 0:02:52]}  Bxc4 {[%clk 0:02:57]} 16. Bxc4 {[%clk 0:02:45]}  Qc7 {[%clk 0:02:49]} 17. Bd5 {[%clk 0:02:44]}  g6 {[%clk 0:02:46]} 18. Nd2 {[%clk 0:02:37]}  Bg7 {[%clk 0:02:44]} 19. Nc4 {[%clk 0:02:37]}  Nc6 {[%clk 0:02:43]} 20. Bxc6 {[%clk 0:02:37]}  Qxc6 {[%clk 0:02:42]} 21. Ne3 {[%clk 0:02:37]}  f5 {[%clk 0:02:42]} 22. Nd5 {[%clk 0:02:37]}  f4 {[%clk 0:02:39]} 23. Ne7+ {[%clk 0:02:37]} 1-0


[Site "https://www.chess.com"]

[Event "Titled Tuesday Blitz January 10 Late 2023"]
[White "Jovic, Stanoje"]
[Black "Lopez Idarraga, Daniel Eduardo"]
[WhiteFideId "905020"]
[BlackFideId "4405501"]
[WhiteElo "2075"]
[BlackElo "2009"]
[Result "0-1"]
[Round "10"]
[TimeControl "180+2"]
[Date "2023.01.10"]
[WhiteClock "0:00:30"]
[BlackClock "0:01:48"]

1. c4 {[%clk 0:00:00]}  Nf6 {[%clk 0:00:00]} 2. g3 {[%clk 0:03:00]}  e6 {[%clk 0:02:58]} 3. Bg2 {[%clk 0:03:01]}  d5 {[%clk 0:02:59]} 4. Nf3 {[%clk 0:03:01]}  Be7 {[%clk 0:03:00]} 5. O-O {[%clk 0:03:01]}  O-O {[%clk 0:02:58]} 6. d4 {[%clk 0:03:00]}  dxc4 {[%clk 0:02:58]} 7. Ne5 {[%clk 0:03:01]}  Nc6 {[%clk 0:02:58]} 8. Bxc6 {[%clk 0:03:00]}  bxc6 {[%clk 0:02:54]} 9. Nxc6 {[%clk 0:03:00]}  Qe8 {[%clk 0:02:54]} 10. Nxe7+ {[%clk 0:03:00]}  Qxe7 {[%clk 0:02:54]} 11. Na3 {[%clk 0:03:00]}  c5 {[%clk 0:02:55]} 12. Nxc4 {[%clk 0:03:00]}  cxd4 {[%clk 0:02:53]} 13. b3 {[%clk 0:02:59]}  e5 {[%clk 0:02:52]} 14. Ba3 {[%clk 0:02:59]}  Qe6 {[%clk 0:02:51]} 15. Bxf8 {[%clk 0:02:58]}  Kxf8 {[%clk 0:02:42]} 16. f4 {[%clk 0:02:56]}  Bb7 {[%clk 0:02:43]} 17. Nxe5 {[%clk 0:02:52]}  Rd8 {[%clk 0:02:14]} 18. Qd2 {[%clk 0:02:34]}  Qb6 {[%clk 0:02:10]} 19. Rac1 {[%clk 0:02:24]}  d3+ {[%clk 0:02:07]} 20. e3 {[%clk 0:02:10]}  Ne4 {[%clk 0:02:01]} 21. Qg2 {[%clk 0:02:06]}  Qxe3+ {[%clk 0:01:59]} 22. Kh1 {[%clk 0:01:03]}  Nf2+ {[%clk 0:01:54]} 23. Kg1 {[%clk 0:00:54]}  Nh3+ {[%clk 0:01:50]} 24. Kh1 {[%clk 0:00:33]}  Qg1+ {[%clk 0:01:49]} 25. Rxg1 {[%clk 0:00:30]}  Nf2# {[%clk 0:01:48]} 0-1


[Site "https://www.chess.com"]

[Event "Titled Tuesday Blitz January 10 Late 2023"]
[White "Belenkaya, Dina"]
[Black "Zampronha, Wladimir Camilo"]
[WhiteFideId "24142654"]
[BlackFideId "2103087"]
[WhiteElo "2267"]
[BlackElo "2176"]
[Result "1/2-1/2"]
[Round "10"]
[TimeControl "180+2"]
[Date "2023.01.10"]
[WhiteClock "0:00:09"]
[BlackClock "0:00:11"]

1. Nf3 {[%clk 0:00:00]}  Nf6 {[%clk 0:00:00]} 2. g3 {[%clk 0:03:00]}  e6 {[%clk 0:02:59]} 3. Bg2 {[%clk 0:03:01]}  d5 {[%clk 0:03:00]} 4. d3 {[%clk 0:02:59]}  Be7 {[%clk 0:03:01]} 5. Nbd2 {[%clk 0:02:57]}  O-O {[%clk 0:03:02]} 6. O-O {[%clk 0:02:56]}  c5 {[%clk 0:03:00]} 7. e4 {[%clk 0:02:56]}  Nc6 {[%clk 0:03:00]} 8. e5 {[%clk 0:02:56]}  Nd7 {[%clk 0:02:59]} 9. Qe2 {[%clk 0:02:44]}  b5 {[%clk 0:02:58]} 10. Re1 {[%clk 0:02:43]}  a5 {[%clk 0:02:59]} 11. Nf1 {[%clk 0:02:39]}  a4 {[%clk 0:02:59]} 12. h3 {[%clk 0:02:37]}  b4 {[%clk 0:02:59]} 13. g4 {[%clk 0:02:27]}  Ba6 {[%clk 0:03:00]} 14. Ng3 {[%clk 0:02:27]}  c4 {[%clk 0:02:55]} 15. d4 {[%clk 0:02:21]}  c3 {[%clk 0:02:54]} 16. Qd1 {[%clk 0:02:15]}  cxb2 {[%clk 0:02:51]} 17. Bxb2 {[%clk 0:02:11]}  Na5 {[%clk 0:02:49]} 18. Nd2 {[%clk 0:02:10]}  Nc4 {[%clk 0:02:47]} 19. Nxc4 {[%clk 0:02:08]}  Bxc4 {[%clk 0:02:47]} 20. Bf1 {[%clk 0:02:08]}  Nb6 {[%clk 0:02:43]} 21. Bc1 {[%clk 0:02:06]}  Bxf1 {[%clk 0:02:40]} 22. Nxf1 {[%clk 0:02:05]}  Nc4 {[%clk 0:02:39]} 23. Rb1 {[%clk 0:02:05]}  Qa5 {[%clk 0:02:39]} 24. Bd2 {[%clk 0:02:03]}  Rfc8 {[%clk 0:02:29]} 25. Ne3 {[%clk 0:01:58]}  Nxd2 {[%clk 0:02:20]} 26. Qxd2 {[%clk 0:01:38]}  Qc7 {[%clk 0:02:16]} 27. Rec1 {[%clk 0:01:37]}  Rab8 {[%clk 0:02:07]} 28. Nd1 {[%clk 0:01:35]}  h6 {[%clk 0:01:58]} 29. Kf1 {[%clk 0:01:30]}  Qc4+ {[%clk 0:01:55]} 30. Ke1 {[%clk 0:01:17]}  Qxa2 {[%clk 0:01:55]} 31. Ra1 {[%clk 0:01:03]}  Qc4 {[%clk 0:01:18]} 32. Rxa4 {[%clk 0:00:59]}  Ra8 {[%clk 0:01:18]} 33. Rxa8 {[%clk 0:00:59]}  Rxa8 {[%clk 0:01:07]} 34. Ne3 {[%clk 0:00:44]}  Qb5 {[%clk 0:01:08]} 35. Rb1 {[%clk 0:00:45]}  Ra2 {[%clk 0:01:01]} 36. Qe2 {[%clk 0:00:42]}  Qa4 {[%clk 0:00:58]} 37. Qd1 {[%clk 0:00:32]}  Bg5 {[%clk 0:00:55]} 38. Qd2 {[%clk 0:00:25]}  Bxe3 {[%clk 0:00:51]} 39. fxe3 {[%clk 0:00:18]}  Ra1 {[%clk 0:00:47]} 40. Rxa1 {[%clk 0:00:19]}  Qxa1+ {[%clk 0:00:46]} 41. Ke2 {[%clk 0:00:17]}  Qg1 {[%clk 0:00:47]} 42. Qxb4 {[%clk 0:00:18]}  Qg2+ {[%clk 0:00:35]} 43. Kd3 {[%clk 0:00:18]}  Qxh3 {[%clk 0:00:35]} 44. Qb8+ {[%clk 0:00:18]}  Kh7 {[%clk 0:00:36]} 45. Qc7 {[%clk 0:00:17]}  Kg6 {[%clk 0:00:36]} 46. c4 {[%clk 0:00:16]}  Qf1+ {[%clk 0:00:27]} 47. Kc3 {[%clk 0:00:10]}  dxc4 {[%clk 0:00:28]} 48. Qxc4 {[%clk 0:00:10]}  Qc1+ {[%clk 0:00:22]} 49. Kd3 {[%clk 0:00:10]}  Qb1+ {[%clk 0:00:21]} 50. Kd2 {[%clk 0:00:10]}  Qb2+ {[%clk 0:00:12]} 51. Kd3 {[%clk 0:00:09]}  Qb1+ {[%clk 0:00:10]} 52. Kd2 {[%clk 0:00:09]}  Qb2+ {[%clk 0:00:10]} 53. Kd3 {[%clk 0:00:09]}  Qb1+ {[%clk 0:00:11]} 1/2-1/2


[Site "https://www.chess.com"]

[Event "Titled Tuesday Blitz January 10 Late 2023"]
[White "Arencibia Monduy, Antonio"]
[Black "De Arruda, Leandro Formes"]
[WhiteFideId "3507939"]
[BlackFideId "22722009"]
[WhiteElo "2122"]
[BlackElo "1980"]
[Result "1-0"]
[Round "10"]
[TimeControl "180+2"]
[Date "2023.01.10"]
[WhiteClock "0:00:12"]
[BlackClock "0:00:01"]

1. e4 {[%clk 0:00:00]}  e6 {[%clk 0:00:00]} 2. d4 {[%clk 0:03:00]}  d5 {[%clk 0:02:58]} 3. Nc3 {[%clk 0:03:00]}  dxe4 {[%clk 0:02:59]} 4. Nxe4 {[%clk 0:03:01]}  Nd7 {[%clk 0:02:59]} 5. Nf3 {[%clk 0:03:01]}  Ngf6 {[%clk 0:02:59]} 6. Nc3 {[%clk 0:03:00]}  Be7 {[%clk 0:03:00]} 7. Bd3 {[%clk 0:03:00]}  O-O {[%clk 0:03:01]} 8. Qe2 {[%clk 0:03:00]}  b6 {[%clk 0:03:01]} 9. Bf4 {[%clk 0:03:00]}  Bb7 {[%clk 0:03:02]} 10. O-O-O {[%clk 0:02:59]}  a6 {[%clk 0:03:02]} 11. h3 {[%clk 0:02:59]}  b5 {[%clk 0:02:59]} 12. Rhg1 {[%clk 0:02:58]}  b4 {[%clk 0:03:00]} 13. Ne4 {[%clk 0:02:56]}  Nxe4 {[%clk 0:03:00]} 14. Bxe4 {[%clk 0:02:56]}  Bxe4 {[%clk 0:03:00]} 15. Qxe4 {[%clk 0:02:57]}  Nf6 {[%clk 0:03:00]} 16. Qd3 {[%clk 0:02:58]}  Qd5 {[%clk 0:03:00]} 17. Kb1 {[%clk 0:02:49]}  a5 {[%clk 0:02:59]} 18. Bxc7 {[%clk 0:02:49]}  Rfc8 {[%clk 0:02:59]} 19. Be5 {[%clk 0:02:42]}  Ne4 {[%clk 0:02:56]} 20. Qe3 {[%clk 0:02:41]}  Nc3+ {[%clk 0:02:51]} 21. bxc3 {[%clk 0:02:33]}  bxc3 {[%clk 0:02:32]} 22. Ka1 {[%clk 0:02:34]}  Ba3 {[%clk 0:02:32]} 23. Rb1 {[%clk 0:02:31]}  Bb2+ {[%clk 0:02:29]} 24. Rxb2 {[%clk 0:02:31]}  cxb2+ {[%clk 0:02:28]} 25. Kxb2 {[%clk 0:02:30]}  Qc4 {[%clk 0:02:29]} 26. Qd3 {[%clk 0:02:31]}  Qa4 {[%clk 0:02:23]} 27. Qb3 {[%clk 0:02:05]}  Qc6 {[%clk 0:02:12]} 28. a4 {[%clk 0:02:02]}  Ra6 {[%clk 0:02:07]} 29. d5 {[%clk 0:01:55]}  exd5 {[%clk 0:02:02]} 30. Nd4 {[%clk 0:01:23]}  Qc5 {[%clk 0:01:47]} 31. Rd1 {[%clk 0:01:23]}  Re8 {[%clk 0:01:45]} 32. Bg3 {[%clk 0:01:13]}  h6 {[%clk 0:01:26]} 33. Nb5 {[%clk 0:01:13]}  Rd8 {[%clk 0:01:24]} 34. Qc3 {[%clk 0:01:09]}  Qe7 {[%clk 0:01:15]} 35. Bc7 {[%clk 0:01:02]}  Rc8 {[%clk 0:00:59]} 36. Rxd5 {[%clk 0:00:52]}  Raa8 {[%clk 0:00:49]} 37. Rc5 {[%clk 0:00:52]}  Qe2 {[%clk 0:00:41]} 38. Bg3 {[%clk 0:00:46]}  Rd8 {[%clk 0:00:30]} 39. Be5 {[%clk 0:00:33]}  f6 {[%clk 0:00:23]} 40. Bg3 {[%clk 0:00:31]}  Rd2 {[%clk 0:00:17]} 41. Rc7 {[%clk 0:00:31]}  Rad8 {[%clk 0:00:13]} 42. Qc4+ {[%clk 0:00:30]}  Kh8 {[%clk 0:00:11]} 43. Qxe2 {[%clk 0:00:28]}  Rxe2 {[%clk 0:00:10]} 44. Ra7 {[%clk 0:00:28]}  Rd4 {[%clk 0:00:11]} 45. Rxa5 {[%clk 0:00:23]}  Rb4+ {[%clk 0:00:08]} 46. Kc3 {[%clk 0:00:20]}  Rbe4 {[%clk 0:00:07]} 47. Ra8+ {[%clk 0:00:19]}  Kh7 {[%clk 0:00:07]} 48. Kb3 {[%clk 0:00:19]}  Re1 {[%clk 0:00:07]} 49. Nc3 {[%clk 0:00:16]}  Re7 {[%clk 0:00:07]} 50. Rb8 {[%clk 0:00:13]}  Ra1 {[%clk 0:00:04]} 51. Rb4 {[%clk 0:00:12]}  Ra7 {[%clk 0:00:03]} 52. Kb2 {[%clk 0:00:12]}  Re1 {[%clk 0:00:02]} 53. Bf4 {[%clk 0:00:12]}  Re4 {[%clk 0:00:01]} 54. Rxe4 {[%clk 0:00:12]} 1-0


[Site "https://www.chess.com"]

[Event "Titled Tuesday Blitz January 10 Late 2023"]
[White "Carbone, Diego"]
[Black "Marcolino, Daniel Mattos"]
[WhiteFideId "3002179"]
[BlackFideId "2106841"]
[WhiteElo "2336"]
[BlackElo "2006"]
[Result "1-0"]
[Round "10"]
[TimeControl "180+2"]
[Date "2023.01.10"]
[WhiteClock "0:01:35"]
[BlackClock "0:01:38"]

1. d4 {[%clk 0:00:00]}  Nf6 {[%clk 0:00:00]} 2. c4 {[%clk 0:03:00]}  e6 {[%clk 0:02:57]} 3. g3 {[%clk 0:02:59]}  d5 {[%clk 0:02:57]} 4. Bg2 {[%clk 0:03:00]}  dxc4 {[%clk 0:02:57]} 5. Nf3 {[%clk 0:03:00]}  Nc6 {[%clk 0:02:54]} 6. O-O {[%clk 0:03:00]}  a6 {[%clk 0:02:52]} 7. e3 {[%clk 0:02:57]}  Rb8 {[%clk 0:02:51]} 8. Nfd2 {[%clk 0:02:42]}  Bd7 {[%clk 0:02:47]} 9. Nxc4 {[%clk 0:02:41]}  Be7 {[%clk 0:02:41]} 10. Nc3 {[%clk 0:02:39]}  O-O {[%clk 0:02:10]} 11. a3 {[%clk 0:02:31]}  b5 {[%clk 0:02:09]} 12. Ne5 {[%clk 0:02:16]}  Na5 {[%clk 0:02:08]} 13. b4 {[%clk 0:02:15]}  Nb7 {[%clk 0:01:45]} 14. Bb2 {[%clk 0:01:48]}  Nd6 {[%clk 0:01:40]} 15. Qb3 {[%clk 0:01:38]}  Bc8 {[%clk 0:01:38]} 16. Nc6 {[%clk 0:01:35]} 1-0


[Site "https://www.chess.com"]